bitfinex/quotes_ETHUSD_20230703
["timestamp","ask_amount","ask_price","bid_price","bid_amount"]
[1688418960867,5.61863181,1959.9,1959.5,12.75832]
[1688418961071,0.56186318,1959.8,1959.5,10.20665]
[1688418961238,5.66451318,1959.8,1959.5,10.20665]
[1688418961932,6.16451318,1959.8,1959.5,10.20665]
[1688418963216,1.06186318,1959.8,1959.5,12.75832]
[1688418963461,0.5,1959.8,1959.5,12.75832]
[1688418973791,1.29908148,1959.8,1959.5,12.75832]
[1688418974104,0.5,1959.8,1959.5,12.75832]
[1688418974508,1.29908148,1959.8,1959.5,12.75832]
[1688418977548,2.3662179,1959.8,1959.5,12.75832]
[1688418977681,1.29908148,1959.8,1959.5,12.75832]
[1688418985222,1.29908148,1959.8,1959.5,19.43610476]
[1688418985896,0.5,1959.8,1959.5,19.43610476]
[1688418986208,1.29908148,1959.8,1959.5,19.43610476]
[1688418986997,0.5,1959.8,1959.5,19.43610476]
[1688418989314,1.29908148,1959.8,1959.5,19.43610476]
[1688418999527,0.5,1959.8,1959.5,19.43610476]
[1688419006442,0.5,1959.8,1959.7,10.20564]
[1688419006743,0.5,1959.8,1959.7,12.75705]
[1688419007222,0.29908148,1959.9,1959.7,12.75705]
[1688419007580,12.5999005,1960.1,1959.7,12.75705]
[1688419007741,7.4979805,1960.1,1959.7,12.75705]
[1688419007932,6.16902642,1960.1,1959.7,12.75705]
[1688419009065,6.66902642,1960.1,1959.7,12.75705]
[1688419014586,11.77091642,1960.1,1959.7,12.75705]
[1688419016185,5.90227615,1960.0,1959.7,12.75705]
[1688419017244,6.40227615,1960.0,1959.7,12.75705]
[1688419019709,10.21819457,1960.0,1959.7,5.10282]
[1688419020012,5.10256,1959.8,1959.6,5.10299]
[1688419020174,10.20512,1959.8,1959.5,5.10319]
[1688419020683,10.20512,1959.8,1959.5,10.20653]
[1688419020888,5.10256,1959.8,1959.5,10.20653]
[1688419022878,0.01632181,1959.7,1959.4,0.41375756]
[1688419023105,5.109161,1959.6,1959.2,8.11682]
[1688419023414,5.10321,1959.6,1959.2,8.11682]
[1688419023615,11.02244796,1959.7,1959.2,8.11682]
[1688419023780,3.35893431,1959.6,1959.2,3.0127]
[1688419023992,10.55062888,1959.5,1959.2,0.0127]
[1688419024229,12.12102343,1959.5,1959.2,0.0127]
[1688419024533,7.67135139,1959.4,1959.2,5.11681]
[1688419024683,15.32695139,1959.4,1959.2,0.0127]
[1688419025130,15.31818816,1959.4,1959.2,0.0127]
[1688419025329,11.14192804,1959.3,1959.2,0.0127]
[1688419025533,13.7007162,1959.3,1959.2,0.0127]
[1688419026530,8.5968562,1959.3,1959.2,0.0127]
[1688419026727,13.68774499,1959.3,1959.2,0.0127]
[1688419027048,8.5904509,1959.3,1959.2,0.0127]
[1688419027219,8.58388499,1959.3,1959.2,0.0127]
[1688419029031,1.5784,1959.5,1959.2,12.773]
[1688419029188,3.11724615,1959.7,1959.2,12.773]
[1688419029189,10.20653,1959.6,1959.2,12.773]
[1688419029388,12.76531816,1959.6,1959.2,12.773]
[1688419029632,5.1032,1959.6,1959.2,12.773]
[1688419029801,13.14067615,1959.7,1959.2,12.773]
[1688419030130,12.34053,1959.7,1959.2,14.0503]
[1688419035157,14.89194,1959.7,1959.2,19.4183]
[1688419035864,14.89194,1959.7,1959.2,14.0503]
[1688419035865,12.34053,1959.7,1959.2,14.0503]
[1688419036163,14.89194,1959.7,1959.2,14.0503]
[1688419037549,14.89194,1959.7,1959.2,12.773]
[1688419039677,14.89194,1959.7,1959.2,0.0127]
[1688419039678,18.25087431,1959.7,1959.2,0.0127]
[1688419039839,18.25087431,1959.7,1959.2,5.11681]
[1688419039840,2.55878816,1959.6,1959.2,5.11681]
[1688419040038,10.20678,1959.5,1959.2,5.11681]
[1688419040241,1.020678,1959.4,1959.2,5.11681]
[1688419040450,6.124418,1959.4,1959.2,5.11681]
[1688419041579,6.124418,1959.4,1959.2,0.0127]
[1688419041904,11.24447981,1959.4,1959.2,0.0127]
[1688419042365,13.80326797,1959.4,1959.2,0.0127]
[1688419042568,6.4841868,1959.3,1959.2,0.0127]
[1688419043546,9.04297496,1959.3,1959.2,0.0127]
[1688419045746,3.93911496,1959.3,1959.2,0.0127]
[1688419046852,9.54297496,1959.3,1959.2,0.0127]
[1688419048694,14.64683496,1959.3,1959.2,0.0127]
[1688419050400,17.19876496,1959.3,1959.2,0.0127]
[1688419051471,17.19876496,1959.3,1958.7,10.21055]
[1688419051673,2.55878816,1959.2,1958.7,10.21055]
[1688419051871,2.55878816,1959.2,1958.7,10.16055]
[1688419051872,5.10449,1959.1,1958.7,10.16055]
[1688419053480,5.60449,1959.1,1958.7,10.16055]
[1688419054007,2.55878816,1959.0,1958.7,5.05525]
[1688419054171,10.2098,1958.9,1958.5,5.10581]
[1688419054372,10.2098,1958.9,1958.5,6.73701]
[1688419055073,2.55878816,1958.8,1958.5,6.73701]
[1688419055305,2.55878816,1958.8,1958.5,14.39592]
[1688419055913,2.55878816,1958.8,1958.5,12.76472]
[1688419058509,0.01632181,1958.7,1958.5,5.10581]
[1688419059103,5.12179181,1958.7,1958.5,5.10581]
[1688419059304,0.01632181,1958.7,1958.5,5.10581]
[1688419059918,0.51632181,1958.7,1958.5,5.10581]
[1688419061489,0.51632181,1958.7,1958.5,5.10591]
[1688419061694,0.51632181,1958.7,1958.5,10.21185]
[1688419062516,0.51632181,1958.7,1958.5,5.10591]
[1688419064721,9.50908997,1958.7,1958.3,5.50970607]
[1688419065026,14.61450997,1958.7,1958.3,10.21268]
[1688419066528,9.50908997,1958.7,1958.3,10.21268]
[1688419067711,9.52178997,1958.7,1958.3,10.21268]
[1688419068182,0.952179,1958.6,1958.3,5.10634]
[1688419068354,3.08780997,1958.7,1958.3,10.2128]
[1688419068675,8.19323997,1958.7,1958.3,12.76603]
[1688419069334,0.52902181,1958.7,1958.3,12.76603]
[1688419070155,0.53453849,1958.7,1958.3,12.76603]
[1688419070341,0.52902181,1958.7,1958.3,12.76603]
[1688419070743,0.53505177,1958.7,1958.3,12.76603]
[1688419071380,0.52902181,1958.7,1958.3,12.76603]
[1688419072595,0.53672915,1958.7,1958.3,15.00781298]
[1688419072758,0.5127,1958.7,1958.3,20.37581298]
[1688419072952,0.5127,1958.7,1958.4,0.48]
[1688419073292,0.5127,1958.7,1958.5,12.76485]
[1688419073598,0.5127,1958.7,1958.5,18.13285]
[1688419073802,0.5127,1958.7,1958.6,1.813285]
[1688419074104,0.5127,1958.7,1958.6,14.577485]
[1688419075872,0.5127,1958.7,1958.6,12.024645]
[1688419076184,0.5127,1958.7,1958.6,10.21136]
[1688419079898,0.5127,1958.7,1958.6,12.7642]
[1688419080505,0.5127,1958.7,1958.6,18.1322]
[1688419081702,0.5127,1958.7,1958.6,18.0822]
[1688419085708,0.5127,1958.7,1958.6,18.5622]
[1688419085911,0.5127,1958.7,1958.6,20.71514696]
[1688419087261,0.5127,1958.7,1958.6,23.71514696]
[1688419089818,5.90300615,1959.7,1959.1,5.368]
[1688419090117,7.53730615,1959.7,1959.4,10.2071]
[1688419090314,5.90300615,1959.7,1959.4,10.2071]
[1688419090529,11.00586615,1959.7,1959.4,10.2071]
[1688419091089,11.50586615,1959.7,1959.4,10.2071]
[1688419091301,1.30014615,1959.7,1959.4,12.7589]
[1688419091602,0.5,1959.7,1959.4,12.7589]
[1688419095809,0.5,1959.7,1959.4,14.57159]
[1688419097131,0.5,1959.7,1959.5,5.368]
[1688419097335,0.5,1959.7,1959.6,18.6057]
[1688419098790,0.5,1959.7,1959.6,13.2377]
[1688419099501,0.5,1959.7,1959.6,18.6057]
[1688419099804,0.5,1959.7,1959.6,6.96365]
[1688419099972,0.5,1959.7,1959.6,10.20616]
[1688419100368,0.5,1959.7,1959.6,5.10308]
[1688419100566,5.60282,1959.7,1959.6,5.10308]
[1688419103885,0.5,1959.7,1959.6,5.10308]
[1688419104087,0.5,1959.7,1959.6,10.20616]
[1688419104496,0.5,1959.7,1959.6,19.401481]
[1688419104803,0.5,1959.7,1959.6,19.881481]
[1688419105973,0.5,1959.7,1959.6,22.881481]
[1688419109778,0.5,1959.7,1959.6,25.44026916]
[1688419116492,0.5,1959.7,1959.6,22.881481]
[1688419118733,0.5,1959.7,1959.6,14.481941]
[1688419118890,0.5,1959.7,1959.6,17.033481]
[1688419120194,0.5,1959.7,1959.6,17.513481]
[1688419120897,0.5,1959.7,1959.6,22.881481]
[1688419126629,0.5,1959.7,1959.6,25.44026916]
[1688419128258,0.5,1959.7,1959.6,26.20800887]
[1688419133496,0.5,1959.7,1959.6,25.94026916]
[1688419135472,0.5,1959.7,1959.6,22.901481]
[1688419136871,0.5,1959.7,1959.6,23.381481]
[1688419145875,0.5,1959.7,1959.6,23.64922071]
[1688419150082,0.5,1959.7,1959.6,23.381481]
[1688419152207,0.5,1959.7,1959.6,23.64922071]
[1688419153875,0.5,1959.7,1959.6,26.20800887]
[1688419155522,0.49629093,1959.7,1959.6,26.20800887]
[1688419163379,0.49629093,1959.7,1959.6,23.64922071]
[1688419170117,1.9237,1960.1,1960.0,13.52730907]
[1688419170687,2.72384615,1960.1,1960.0,13.52730907]
[1688419171024,0.80014615,1960.1,1960.0,13.52730907]
[1688419171730,1.30014615,1960.1,1960.0,13.52730907]
[1688419180129,1.30014615,1960.1,1960.0,10.97628907]
[1688419183366,1.06673715,1960.1,1960.0,10.97628907]
[1688419190809,6.16851715,1960.1,1960.0,0.77220907]
[1688419190987,2.30046951,1960.1,1960.0,0.77220907]
[1688419191182,7.40224951,1960.1,1960.0,0.77220907]
[1688419191871,15.06281767,1960.1,1960.0,0.77220907]
[1688419192707,16.12995409,1960.1,1960.0,0.77220907]
[1688419192919,15.32980794,1960.1,1960.0,0.77220907]
[1688419194720,16.65876202,1960.1,1960.0,0.77220907]
[1688419195032,15.5916256,1960.1,1960.0,0.77220907]
[1688419195208,16.65870656,1960.1,1960.0,0.77220907]
[1688419195726,15.32947799,1960.1,1960.0,0.77220907]
[1688419200749,10.22769799,1960.1,1960.0,0.77220907]
[1688419200992,15.32947799,1960.1,1960.0,0.77220907]
[1688419201333,17.88036799,1960.1,1960.0,0.77220907]
[1688419204230,19.20932207,1960.1,1960.0,0.77220907]
[1688419204441,18.1425156,1960.1,1960.0,0.77220907]
[1688419205093,32.34634152,1960.1,1960.0,0.77220907]
[1688419205292,33.94148423,1960.1,1960.0,0.77220907]
[1688419208404,32.35174112,1960.1,1960.0,0.77220907]
[1688419210627,32.35174112,1960.1,1959.2,1.8147]
[1688419210945,12.75757,1959.7,1959.2,1.8147]
[1688419211151,2.55878816,1959.6,1959.2,1.8147]
[1688419211305,5.10339,1959.5,1959.2,1.8147]
[1688419211506,7.66217816,1959.5,1959.2,1.8147]
[1688419211816,7.92876916,1959.5,1959.2,1.8147]
[1688419212017,14.26589152,1959.5,1959.2,1.8147]
[1688419212433,2.55878816,1959.4,1959.2,1.8147]
[1688419212632,7.66248816,1959.4,1959.2,1.8147]
[1688419212947,15.31799816,1959.4,1959.2,1.8147]
[1688419213252,15.31799816,1959.4,1959.1,5.10437]
[1688419213553,16.61371398,1959.4,1959.1,5.10437]
[1688419213759,14.06191398,1959.4,1959.0,11.94834]
[1688419214061,14.07823579,1959.4,1959.0,11.94834]
[1688419214427,16.63003579,1959.4,1959.0,1.7394]
[1688419214657,1.23373236,1959.3,1959.0,1.7394]
[1688419214860,7.66283816,1959.3,1959.0,1.7394]
[1688419215062,12.76688816,1959.3,1959.0,1.7394]
[1688419215358,2.55878816,1959.2,1959.0,1.7394]
[1688419215557,5.10438,1959.1,1959.0,1.7394]
[1688419215739,5.10438,1959.1,1958.9,5.10477]
[1688419215740,2.55878816,1959.1,1958.9,5.10477]
[1688419216262,7.66316816,1959.1,1958.9,5.10477]
[1688419216556,7.66316816,1959.1,1958.8,5.10502]
[1688419217029,7.66316816,1959.1,1958.8,10.21018]
[1688419218618,7.92975916,1959.1,1958.8,10.21018]
[1688419223672,2.82537916,1959.1,1958.8,10.21018]
[1688419224171,2.82537916,1959.1,1958.8,12.76276]
[1688419225340,0.266591,1959.1,1958.8,14.26282538]
[1688419237342,0.109636,1959.1,1958.8,14.26282538]
[1688419239676,0.109636,1959.1,1958.8,13.99508567]
[1688419257977,0.109636,1959.1,1958.8,25.27077364]
[1688419258584,0.109636,1959.1,1958.9,0.53478826]
[1688419258780,0.109636,1959.1,1959.0,12.7616]
[1688419259121,0.109636,1959.1,1959.0,14.09123883]
[1688419295651,0.109636,1959.1,1959.0,12.7616]
[1688419295852,0.109636,1959.1,1958.9,5.10479]
[1688419296052,0.109636,1959.1,1958.9,10.20969]
[1688419299370,0.109636,1959.1,1958.9,12.76214]
[1688419319708,0.109636,1959.1,1958.9,5.10479]
[1688419319953,0.6310216,1959.1,1958.9,5.10479]
[1688419321249,0.64734341,1959.1,1958.9,5.10479]
[1688419322440,0.64734341,1959.1,1958.8,10.21012]
[1688419324354,0.64734341,1959.1,1958.8,12.7627]
[1688419324866,0.64734341,1959.1,1958.8,10.21012]
[1688419325022,3.20613157,1959.1,1958.8,10.21012]
[1688419325427,3.20613157,1959.1,1958.8,5.10506]
[1688419325428,8.31052157,1959.1,1958.8,5.10506]
[1688419325728,0.83105216,1959.0,1958.8,5.10506]
[1688419326426,3.09649557,1959.1,1958.8,5.10506]
[1688419326951,3.09649557,1959.1,1958.8,10.21022]
[1688419327324,3.20613157,1959.1,1958.8,10.21022]
[1688419327761,8.31051157,1959.1,1958.8,10.21022]
[1688419330736,3.20613157,1959.1,1958.8,10.21022]
[1688419335490,0.109636,1959.1,1958.8,12.7628]
[1688419341345,0.109636,1959.1,1959.0,12.7616]
[1688419343458,0.109636,1959.1,1959.0,12.7116]
[1688419351250,0.109636,1959.1,1959.0,10.20928]
[1688419351743,0.12595781,1959.1,1959.0,5.10464]
[1688419353403,0.12595781,1959.1,1958.8,6.68940778]
[1688419353404,0.12595781,1959.1,1958.8,10.2101]
[1688419353654,5.75335659,1959.1,1958.8,10.2101]
[1688419353931,5.75335659,1959.1,1958.8,12.76268]
[1688419354633,0.64897659,1959.1,1958.8,12.76268]
[1688419356612,0.12595781,1959.1,1958.8,12.76268]
[1688419358697,0.109636,1959.1,1958.8,13.03041971]
[1688419360036,0.109636,1959.1,1958.8,18.39841971]
[1688419360246,0.109636,1959.1,1958.9,9.11573971]
[1688419360534,0.109636,1959.1,1959.0,15.31392]
[1688419360705,0.109636,1959.1,1959.0,21.23688597]
[1688419360912,0.109636,1959.1,1959.0,21.50462568]
[1688419361337,0.109636,1959.1,1959.0,26.87262568]
[1688419362416,0.109636,1959.1,1959.0,26.60488597]
[1688419363649,0.109636,1959.1,1959.0,15.7616]
[1688419374366,0.109636,1959.1,1959.0,16.2416]
[1688419378252,0.109636,1959.1,1959.0,21.6096]
[1688419382231,0.109636,1959.1,1959.0,16.2416]
[1688419383414,0.109636,1959.1,1959.0,13.68928]
[1688419383859,0.109636,1959.1,1959.0,5.10464]
[1688419384059,0.109636,1959.1,1959.0,10.20928]
[1688419384416,0.109636,1959.1,1959.0,12.7616]
[1688419385515,0.109636,1959.1,1959.0,14.03776]
[1688419389423,0.109636,1959.1,1959.0,12.7616]
[1688419404278,0.109636,1959.1,1959.0,16.2416]
[1688419406707,0.109636,1959.1,1959.0,16.1916]
[1688419414638,0.109636,1959.1,1959.0,16.59218019]
[1688419421533,0.109636,1959.1,1959.0,13.15928]
[1688419421690,0.109636,1959.1,1959.0,15.7116]
[1688419422983,0.109636,1959.1,1959.0,16.1916]
[1688419424330,0.109636,1959.1,1959.0,18.602799]
[1688419427154,0.109636,1959.1,1959.0,16.1916]
[1688419427317,0.109636,1959.1,1959.0,15.7116]
[1688419428147,0.109636,1959.1,1959.0,16.1916]
[1688419429556,0.109636,1959.1,1959.0,15.7116]
[1688419438273,0.109636,1959.1,1959.0,13.15928]
[1688419438747,0.109636,1959.1,1959.0,15.7116]
[1688419446783,0.109636,1959.1,1959.0,12.7116]
[1688419456602,0.109636,1959.1,1959.0,5.05464]
[1688419456973,0.109636,1959.1,1959.0,10.15928]
[1688419457177,0.6310116,1959.1,1959.0,10.15928]
[1688419457788,0.6310116,1959.1,1959.0,5.05464]
[1688419457971,0.109636,1959.1,1959.0,5.05464]
[1688419460073,0.109636,1959.1,1959.0,10.15928]
[1688419460600,0.109636,1959.1,1959.0,5.05464]
[1688419461000,7.78919597,1959.1,1958.9,5.10475]
[1688419461164,2.55878816,1959.0,1958.9,10.20965]
[1688419461363,3.33770776,1959.0,1958.9,5.10475]
[1688419461865,3.33770776,1959.0,1958.6,5.55277]
[1688419461866,12.76806816,1959.0,1958.7,5.10529]
[1688419462201,7.77306416,1959.0,1958.7,10.21071]
[1688419462504,2.66842416,1959.0,1958.7,10.21071]
[1688419463594,7.77312416,1959.0,1958.7,10.21071]
[1688419463802,7.78944597,1959.0,1958.7,10.21071]
[1688419464323,0.7789446,1958.9,1958.7,10.21071]
[1688419468730,0.8885806,1958.9,1958.7,10.21071]
[1688419469897,5.9935106,1958.9,1958.7,10.21071]
[1688419473038,5.9935106,1958.9,1958.7,5.10529]
[1688419473935,0.8885806,1958.9,1958.7,5.10529]
[1688419474626,0.8885806,1958.9,1958.6,13.21106]
[1688419474822,0.8885806,1958.9,1958.7,3.0]
[1688419475030,5.9935106,1958.9,1958.7,3.0]
[1688419475348,0.8885806,1958.9,1958.7,3.0]
[1688419476433,5.9934806,1958.9,1958.6,5.10552]
[1688419476744,0.59934806,1958.8,1958.6,5.10552]
[1688419476903,0.59934806,1958.8,1958.5,15.36999617]
[1688419477105,0.59934806,1958.8,1958.6,3.0]
[1688419477503,5.70454806,1958.8,1958.6,3.0]
[1688419477707,0.59934806,1958.8,1958.5,1.7506]
[1688419477903,3.15813622,1958.8,1958.4,13.2321784]
[1688419478102,0.31581362,1958.7,1958.4,6.8546784]
[1688419478442,13.08552178,1958.7,1958.4,0.0199584]
[1688419478611,15.63823178,1958.7,1958.4,0.0199584]
[1688419479419,13.08552178,1958.7,1958.4,5.1261384]
[1688419480318,13.10184359,1958.7,1958.4,5.1261384]
[1688419480520,5.9412319,1958.6,1958.4,5.1261384]
[1688419481055,11.0471219,1958.6,1958.4,5.1261384]
[1688419481234,13.5999619,1958.6,1958.4,0.0199584]
[1688419481434,11.0471219,1958.6,1958.4,0.0199584]
[1688419481758,8.50002006,1958.6,1958.4,0.0199584]
[1688419481907,0.7789446,1958.5,1958.4,0.0199584]
[1688419482102,5.8848846,1958.5,1958.4,0.0199584]
[1688419482307,0.7789446,1958.5,1958.4,5.1261584]
[1688419482552,13.60566006,1958.6,1958.4,5.1261584]
[1688419483059,13.60566006,1958.6,1958.4,0.0199584]
[1688419483203,16.15850006,1958.6,1958.4,0.0199584]
[1688419483519,16.15850006,1958.6,1958.4,10.2321984]
[1688419483520,8.49981006,1958.6,1958.4,10.2321984]
[1688419483715,8.49981006,1958.6,1958.4,5.1259984]
[1688419483935,5.95592101,1958.5,1958.4,0.0199584]
[1688419484159,11.06186101,1958.5,1958.4,0.0199584]
[1688419484447,6.06555701,1958.5,1958.4,0.0199584]
[1688419485242,11.17149701,1958.5,1958.4,0.0199584]
[1688419486416,6.06555701,1958.5,1958.4,0.0199584]
[1688419487109,6.06555701,1958.5,1958.4,5.1261584]
[1688419487309,5.215576,1958.5,1958.4,5.1261584]
[1688419488469,7.77436416,1958.5,1958.4,0.0199584]
[1688419488638,12.88030416,1958.5,1958.4,0.0199584]
[1688419489036,23.86427416,1958.5,1958.4,0.0199584]
[1688419489959,23.86427416,1958.5,1957.8,5.10762]
[1688419490158,23.86427416,1958.5,1957.7,5.20785]
[1688419490159,5.368,1958.2,1957.7,5.20785]
[1688419490464,12.77302816,1958.1,1957.8,5.1077]
[1688419490650,12.77302816,1958.1,1957.8,10.21547]
[1688419490857,15.32651816,1958.1,1957.7,5.20791]
[1688419491169,7.66590816,1958.1,1957.7,10.31594]
[1688419491359,0.76659082,1958.0,1957.7,12.86995]
[1688419491671,2.55878816,1957.9,1957.7,12.86995]
[1688419493339,5.10712,1958.1,1957.7,12.86995]
[1688419493544,7.66590816,1958.1,1957.7,12.86995]
[1688419494170,7.66586816,1958.1,1957.7,12.86999]
[1688419494542,7.68218997,1958.1,1957.7,12.86999]
[1688419495631,9.16293057,1958.1,1957.7,12.86999]
[1688419497129,14.27001057,1958.1,1957.7,12.86999]
[1688419497558,14.37964657,1958.1,1957.7,12.86999]
[1688419502400,12.89890597,1958.1,1957.7,12.86999]
[1688419508304,12.89890597,1958.1,1957.7,14.57659]
[1688419527564,2.55878816,1958.0,1957.7,0.1]
[1688419527771,12.76877,1957.9,1957.7,0.1]
[1688419527983,2.55878816,1957.8,1957.7,0.1]
[1688419528182,4.09154398,1957.8,1957.7,0.1]
[1688419528382,18.65143816,1957.8,1957.7,0.1]
[1688419528582,23.75920816,1957.8,1957.7,0.1]
[1688419528985,23.75920816,1957.8,1957.3,0.1]
[1688419528986,0.5,1957.3,1956.1,1.87425405]
[1688419529191,0.5,1957.3,1955.4,5.6477122]
[1688419529192,2.0,1956.1,1955.8,2.65675511]
[1688419529474,5.368,1955.1,1955.0,0.80394377]
[1688419529709,5.368,1955.1,1954.5,1.33976908]
[1688419529918,2.65675511,1955.8,1954.9,0.03601098]
[1688419529919,0.02513561,1955.0,1954.9,0.03601098]
[1688419530118,0.02513561,1955.0,1954.8,0.53601063]
[1688419530315,2.0,1955.2,1954.6,0.53601063]
[1688419530526,0.53233681,1955.3,1954.5,5.11618]
[1688419530742,0.53233681,1955.3,1954.4,0.55624075]
[1688419530743,10.73430561,1955.2,1954.4,5.63649]
[1688419530880,7.13969561,1955.2,1954.5,10.23268]
[1688419531215,2.0,1954.8,1954.5,5.11629]
[1688419531419,7.368,1954.5,1954.0,1.00782569]
[1688419531575,0.02513561,1954.4,1954.2,5.11718]
[1688419531772,0.02513561,1954.4,1954.2,0.511718]
[1688419531971,0.02513561,1954.4,1954.3,12.7923]
[1688419532274,0.02513561,1954.5,1954.3,5.11688]
[1688419532478,0.02513561,1954.5,1954.3,5.1169]
[1688419532675,8.431,1954.5,1954.3,5.1169]
[1688419532906,8.431,1954.5,1954.2,5.11702]
[1688419533219,8.431,1954.5,1954.0,3.05878]
[1688419533220,2.0,1954.4,1954.0,5.11764]
[1688419533422,2.0,1954.1,1953.9,1.44778393]
[1688419533576,2.0,1954.1,1953.9,5.1315257]
[1688419533775,2.0,1954.1,1953.9,10.2494857]
[1688419534204,3.063,1954.0,1953.9,0.0138157]
[1688419534378,3.07932181,1954.0,1953.6,5.11852]
[1688419534587,3.07932181,1954.0,1953.7,5.11837]
[1688419534789,3.07932181,1954.0,1953.2,34.0450101]
[1688419534994,2.0,1953.4,1953.3,0.54504149]
[1688419535193,2.0,1953.4,1953.2,1.3751401]
[1688419535432,2.0,1953.1,1952.4,0.1]
[1688419535660,2.0,1952.6,1952.4,5.12186]
[1688419535937,7.12193,1952.4,1952.0,5.12272]
[1688419536147,2.0,1952.0,1951.9,0.01810562]
[1688419536279,2.0,1952.3,1951.9,0.01810562]
[1688419536707,2.0,1951.7,1950.7,30.01422115]
[1688419536919,2.0,1951.2,1950.6,5.02644]
[1688419537081,1.41810723,1951.1,1950.3,0.23264031]
[1688419537285,0.01080575,1951.1,1950.3,18.89492022]
[1688419537533,0.01080575,1951.1,1950.3,0.5997214]
[1688419537693,0.01080575,1951.1,1950.3,7.5997214]
[1688419537895,19.53588223,1950.8,1950.3,0.18264031]
[1688419538117,0.5,1951.1,1950.3,0.13264031]
[1688419538305,0.5,1951.2,1950.3,0.13264031]
[1688419538499,0.5,1950.6,1950.3,0.16509801]
[1688419538713,0.48,1950.5,1950.3,0.16509801]
[1688419538935,0.41632181,1950.6,1950.3,0.16509801]
[1688419539132,10.17,1951.1,1950.4,0.08367819]
[1688419539457,0.48,1951.0,1950.3,0.06509801]
[1688419539657,2.0,1950.9,1950.3,0.06509801]
[1688419539800,0.41632181,1951.0,1950.3,5.19247801]
[1688419540005,5.54075181,1951.5,1950.7,0.08367819]
[1688419540304,0.41632181,1951.5,1950.6,0.08367819]
[1688419540543,5.12458,1951.4,1950.6,0.08367819]
[1688419540712,0.41632181,1951.5,1950.8,5.12594]
[1688419540713,1.44232181,1951.5,1950.8,5.12594]
[1688419541101,2.56144,1952.1,1950.9,0.00806213]
[1688419541102,1.44232181,1951.4,1950.9,0.00806213]
[1688419541442,8.24,1951.7,1950.9,5.20950819]
[1688419541443,6.24,1951.7,1950.9,5.20950819]
[1688419541745,0.41632181,1952.0,1951.3,0.08367819]
[1688419541927,0.41632181,1952.0,1951.5,5.12423]
[1688419542241,0.41632181,1952.0,1951.4,5.12447]
[1688419542448,0.41632181,1952.0,1951.5,3.0]
[1688419542610,1.026,1952.4,1951.7,10.33094819]
[1688419542794,1.026,1952.5,1951.7,10.33094819]
[1688419542999,0.41632181,1952.6,1952.1,5.12266]
[1688419543198,0.41632181,1952.6,1952.2,3.0]
[1688419543439,0.41632181,1952.6,1952.2,2.95]
[1688419543642,5.53769181,1952.6,1952.2,5.12241]
[1688419543841,7.06369181,1952.6,1952.2,5.12241]
[1688419544243,6.03769181,1952.6,1952.2,5.12241]
[1688419544412,6.03769181,1952.6,1952.2,10.24483]
[1688419544413,1.94232181,1952.6,1952.2,10.24483]
[1688419544818,2.0,1952.1,1951.7,30.11]
[1688419545160,2.41632181,1952.2,1951.8,10.24671]
[1688419545318,0.5,1952.6,1951.9,0.08367819]
[1688419545521,0.41632181,1953.5,1952.5,0.08367819]
[1688419545522,2.0,1953.3,1952.5,0.08367819]
[1688419545744,2.0,1953.3,1952.1,20.49066]
[1688419545745,2.0,1953.3,1952.7,10.242]
[1688419546031,1.026,1953.3,1952.8,3.0]
[1688419546203,1.026,1953.5,1953.1,12.88349819]
[1688419546406,2.41632181,1953.7,1953.3,10.23882]
[1688419546818,2.41632181,1953.7,1953.5,5.11901]
[1688419547125,2.91632181,1953.7,1953.5,10.23802]
[1688419547442,2.91632181,1953.7,1953.5,5.11901]
[1688419547645,2.91632181,1953.7,1953.5,10.23802]
[1688419547852,2.91632181,1953.7,1953.5,5.11901]
[1688419548005,2.91632181,1953.7,1953.1,2.64363819]
[1688419548006,0.41632181,1953.3,1952.9,5.12041]
[1688419548205,0.41632181,1953.3,1953.0,8.12021]
[1688419548444,0.41632181,1953.3,1953.0,3.0]
[1688419548649,0.41632181,1953.3,1953.0,8.12032]
[1688419548853,6.04743181,1953.5,1953.0,13.24064]
[1688419549167,8.04743181,1953.5,1953.0,13.24064]
[1688419549384,6.04743181,1953.5,1953.0,13.24064]
[1688419549597,0.41632181,1953.3,1952.5,4.45488]
[1688419549884,0.41632181,1953.0,1952.6,0.02696389]
[1688419550188,0.41632181,1953.0,1952.6,5.12132]
[1688419550189,0.41632181,1952.8,1952.6,5.12132]
[1688419550391,0.41632181,1952.8,1952.6,10.24269]
[1688419550686,0.41632181,1953.0,1952.6,10.24269]
[1688419550892,3.575,1953.2,1952.6,10.24269]
[1688419551046,0.41632181,1953.0,1952.6,10.24269]
[1688419551447,0.41632181,1953.0,1952.7,3.0]
[1688419551643,0.41632181,1953.0,1952.8,5.12085]
[1688419552593,0.41632181,1953.0,1952.8,10.2417]
[1688419553177,3.575,1953.2,1952.8,10.2417]
[1688419553384,0.5,1953.0,1952.8,10.2417]
[1688419553793,0.5,1953.0,1952.9,3.0]
[1688419553962,0.5,1953.0,1952.9,15.80145]
[1688419554900,0.5,1953.0,1952.9,17.38322608]
[1688419555251,0.50123,1953.7,1953.1,0.08367819]
[1688419555590,3.56423,1953.7,1953.2,12.79897]
[1688419555799,0.91755181,1953.7,1953.3,3.0]
[1688419556093,0.91755181,1953.7,1953.4,10.23844]
[1688419556332,0.41632181,1954.0,1953.4,10.23844]
[1688419556455,0.41632181,1953.7,1953.4,10.13844]
[1688419556899,3.47932181,1953.7,1953.4,10.13844]
[1688419559294,0.41632181,1953.7,1953.4,10.13844]
[1688419560010,3.47932181,1953.7,1953.4,10.13844]
[1688419560212,3.47932181,1953.7,1953.4,12.69807]
[1688419560648,2.0079219,1953.6,1953.4,12.68307]
[1688419560959,2.0079219,1953.6,1953.3,3.0]
[1688419560960,0.41632181,1953.5,1953.3,2.55966]
[1688419561251,0.41632181,1953.5,1953.4,12.79815]
[1688419561956,3.063,1953.8,1953.4,12.88184819]
[1688419562254,0.5,1954.0,1953.4,15.79817]
[1688419562414,0.5,1954.0,1953.5,3.0]
[1688419562415,3.05878816,1954.0,1953.5,3.0]